bitfinex/quotes_SOLUSD_20251002
["timestamp","ask_amount","ask_price","bid_price","bid_amount"]
[1759420292342,0.7,226.24,226.19,25.4210108]
[1759420292546,0.7,226.23,226.19,25.4210108]
[1759420292730,4.41999272,226.25,226.19,26.0910108]
[1759420292731,5.11999272,226.25,226.19,26.0910108]
[1759420292931,4.41949882,226.27,226.19,25.4210108]
[1759420293234,0.7,226.24,226.19,25.4210108]
[1759420293626,0.7,226.24,226.21,0.5]
[1759420294023,0.7,226.23,226.19,0.2]
[1759420294253,0.7,226.22,226.19,0.2]
[1759420294651,0.7,226.24,226.2,20.8]
[1759420295149,15.46824589,226.27,226.19,4.62105139]
[1759420295354,0.7,226.26,226.19,25.42105139]
[1759420295652,0.7,226.25,226.19,25.42105139]
[1759420295954,0.7,226.24,226.19,25.42105139]
[1759420296550,5.12010429,226.24,226.19,25.42105139]
[1759420296937,0.7,226.23,226.19,25.42105139]
[1759420297134,0.7,226.23,226.19,0.2]
[1759420297332,0.7,226.23,226.21,20.8]
[1759420297843,0.7,226.25,226.21,20.8]
[1759420298439,132.9,226.28,226.21,20.8]
[1759420298639,4.41852603,226.32,226.23,20.8]
[1759420298840,4.41852603,226.32,226.24,0.67]
[1759420299954,0.7,226.33,226.24,0.67]
[1759420299955,0.7,226.31,226.25,4.4198895]
[1759420300150,5.11832722,226.33,226.25,5.0898895]
[1759420300533,0.7,226.32,226.25,5.0898895]
[1759420301136,5.11869538,226.32,226.25,5.0898895]
[1759420302750,42.3254144,226.34,226.28,20.8]
[1759420302751,0.7,226.34,226.28,20.8]
[1759420303137,0.7,226.34,226.28,21.47]
[1759420303531,0.7,226.36,226.29,0.67]
[1759420304438,5.11788716,226.36,226.29,5.08897111]
[1759420305033,0.7,226.35,226.29,5.08897111]
[1759420305647,5.11794161,226.35,226.29,5.08897111]
[1759420306155,5.11794161,226.35,226.24,13.2687587]
[1759420306156,1.71807256,226.32,226.24,13.2687587]
[1759420306334,31.96,226.31,226.2,5.09067731]
[1759420306535,0.7,226.3,226.2,5.09067731]
[1759420306839,0.7,226.29,226.23,20.8]
[1759420307156,0.7,226.28,226.23,20.8]
[1759420307358,0.7,226.27,226.23,20.8]
[1759420307958,0.7,226.29,226.23,0.67]
[1759420308153,0.7,226.29,226.21,25.22059175]
[1759420308356,0.7,226.29,226.21,25.89059175]
[1759420308654,5.11913033,226.29,226.24,20.8]
[1759420309238,0.7,226.29,226.24,20.8]
[1759420309438,0.7,226.29,226.24,21.47]
[1759420310148,5.11914406,226.29,226.24,21.47]
[1759420311364,4.41914406,226.29,226.24,20.8]
[1759420311560,0.7,226.28,226.24,20.8]
[1759420311732,0.7,226.27,226.19,0.2]
[1759420311938,2.41807256,226.27,226.19,21.0]
[1759420312163,0.7,226.26,226.19,21.0]
[1759420312338,0.7,226.25,226.19,21.0]
[1759420312853,4.42008486,226.24,226.19,0.2]
[1759420313058,0.7,226.23,226.19,0.2]
[1759420313371,4.42008486,226.24,226.19,0.2]
[1759420313372,0.7,226.22,226.19,0.2]
[1759420313551,0.7,226.22,226.19,21.0]
[1759420314363,5.12053401,226.22,226.19,21.0]
[1759420314886,0.7,226.24,226.19,0.2]
[1759420315060,0.7,226.23,226.19,0.2]
[1759420315379,0.7,226.22,226.19,0.2]
[1759420315760,0.7,226.24,226.19,0.2]
[1759420315958,0.7,226.23,226.19,0.2]
[1759420316160,0.7,226.22,226.19,0.2]
[1759420316358,4.42047564,226.22,226.19,21.0]
[1759420316582,5.12047564,226.22,226.19,21.0]
[1759420316764,0.7,226.21,226.19,0.2]
[1759420317773,20.8,226.2,226.19,0.2]
[1759420317978,21.5,226.2,226.19,0.2]
[1759420319287,5.12086648,226.2,226.19,0.2]
[1759420319585,36.38086648,226.2,226.19,0.2]
[1759420320366,20.8,226.24,226.19,0.2]
[1759420320571,0.7,226.21,226.19,0.2]
[1759420320772,0.7,226.2,226.19,0.2]
[1759420321188,5.12086648,226.2,226.19,0.2]
[1759420321485,5.13028024,226.23,226.19,0.2]
[1759420321663,31.26,226.22,226.19,0.2]
[1759420321861,31.97,226.22,226.19,0.2]
[1759420322261,0.71,226.21,226.19,0.2]
[1759420322658,31.26,226.22,226.19,0.2]
[1759420322877,31.97,226.22,226.19,0.2]
[1759420323192,36.39052578,226.22,226.19,0.2]
[1759420324590,0.71,226.21,226.19,0.2]
[1759420325962,35.68052578,226.22,226.19,0.2]
[1759420326184,36.39052578,226.22,226.19,0.2]
[1759420326489,5.1306858,226.21,226.19,0.2]
[1759420326989,31.26,226.22,226.19,0.2]
[1759420327179,5.12969415,226.26,226.2,0.69]
[1759420327389,31.26,226.24,226.2,0.69]
[1759420327691,31.97,226.24,226.19,0.2]
[1759420328264,36.39013194,226.24,226.19,4.62089824]
[1759420328781,4.42013194,226.24,226.19,0.2]
[1759420328978,0.71,226.23,226.19,0.2]
[1759420329987,35.68013194,226.24,226.19,0.2]
[1759420329988,31.26,226.24,226.2,0.69]
[1759420330188,0.71,226.24,226.19,4.62097643]
[1759420330374,31.97,226.24,226.19,4.62097643]
[1759420330573,31.26,226.24,226.2,0.69]
[1759420330794,31.26,226.24,226.19,4.62097643]
[1759420331091,132.9,226.3,226.22,20.8]
[1759420331296,31.26,226.31,226.23,0.69]
[1759420331670,31.97,226.31,226.23,0.69]
[1759420332390,0.71,226.35,226.26,20.8]
[1759420332592,0.71,226.35,226.27,21.49]
[1759420332776,31.24,226.36,226.27,21.49]
[1759420332980,31.24,226.36,226.28,0.69]
[1759420333185,5.12755746,226.37,226.28,0.69]
[1759420333186,0.71,226.37,226.28,0.69]
[1759420333389,31.95,226.37,226.28,0.69]
[1759420333569,45.52136662,226.43,226.32,20.8]
[1759420333769,31.95,226.42,226.33,0.69]
[1759420333967,36.36657097,226.42,226.33,0.69]
[1759420334206,5.12657097,226.42,226.33,0.69]
[1759420334492,35.65680195,226.41,226.36,20.8]
[1759420334696,0.71,226.4,226.36,20.8]
[1759420334908,0.71,226.39,226.36,20.8]
[1759420335493,36.36680195,226.41,226.36,20.8]
[1759420335693,0.71,226.4,226.36,20.8]
[1759420335874,0.71,226.39,226.36,20.8]
[1759420336990,31.95,226.41,226.36,20.8]
[1759420337192,0.71,226.4,226.36,20.8]
[1759420337789,0.71,226.4,226.37,0.5]
[1759420337996,0.71,226.4,226.36,20.8]
[1759420338915,5.12655033,226.43,226.37,0.69]
[1759420339205,5.12655033,226.43,226.37,21.49]
[1759420339206,36.36655033,226.43,226.37,21.49]
[1759420339415,13.26465191,226.54,226.38,0.69]
[1759420339416,0.71,226.44,226.38,0.69]
[1759420339581,0.71,226.45,226.38,0.69]
[1759420339976,4.41618088,226.44,226.38,0.69]
[1759420340836,5.12618088,226.44,226.36,20.8]
[1759420340982,0.71,226.43,226.36,20.8]
[1759420341305,0.71,226.42,226.36,20.8]
[1759420341478,0.71,226.42,226.36,25.21771746]
[1759420341677,0.71,226.42,226.36,4.41771746]
[1759420342004,5.12618088,226.44,226.38,20.8]
[1759420342904,0.71,226.43,226.36,21.49]
[1759420343114,4.41618088,226.44,226.36,21.49]
[1759420343316,0.71,226.42,226.38,20.8]
[1759420343475,0.71,226.42,226.35,4.41790571]
[1759420343476,5.09618088,226.44,226.37,0.69]
[1759420344280,5.09618088,226.44,226.38,4.41735135]
[1759420346742,0.68,226.49,226.4,20.8]
[1759420347041,0.68,226.48,226.41,0.69]
[1759420347197,0.68,226.48,226.4,20.8]
[1759420347529,0.68,226.47,226.4,21.49]
[1759420347736,0.68,226.47,226.42,0.5]
[1759420348110,0.68,226.46,226.42,0.5]
[1759420348718,4.41598586,226.45,226.42,0.5]
[1759420348922,0.68,226.44,226.42,0.5]
[1759420349132,0.68,226.43,226.42,0.5]
[1759420349634,31.22,226.5,226.42,0.5]
[1759420349937,16.13322088,226.49,226.35,0.69]
[1759420350097,16.13322088,226.49,226.35,5.10793061]
[1759420350430,0.68,226.48,226.38,20.8]
[1759420350601,0.68,226.47,226.38,20.8]
[1759420350932,0.68,226.46,226.39,20.8]
[1759420351112,0.68,226.45,226.4,20.8]
[1759420351317,0.68,226.44,226.4,20.8]
[1759420351501,0.65,226.46,226.4,21.49]
[1759420352322,15.45322088,226.49,226.41,0.69]
[1759420352323,31.87,226.48,226.41,0.69]
[1759420352499,31.87,226.48,226.41,20.8]
[1759420352699,0.65,226.47,226.41,20.8]
[1759420352927,4.41579086,226.46,226.41,20.8]
[1759420353222,0.65,226.45,226.39,5.10698095]
[1759420353724,0.65,226.5,226.42,20.8]
[1759420354046,0.65,226.49,226.43,20.8]
[1759420354538,0.65,226.48,226.41,20.8]
[1759420354730,0.65,226.47,226.41,20.8]
[1759420355045,0.65,226.47,226.43,20.8]
[1759420355205,16.1,226.51,226.42,0.69]
[1759420355406,0.65,226.5,226.41,20.8]
[1759420355614,0.65,226.49,226.41,20.8]
[1759420355926,0.65,226.48,226.41,20.8]
[1759420356131,31.55200134,226.51,226.41,20.8]
[1759420356132,0.65,226.47,226.41,20.8]
[1759420356334,0.65,226.46,226.35,10.87647521]
[1759420356645,0.65,226.46,226.39,20.8]
[1759420356938,0.65,226.46,226.4,0.69]
[1759420357234,31.87,226.51,226.43,20.8]
[1759420357428,0.65,226.5,226.44,20.8]
[1759420357606,0.65,226.5,226.42,0.69]
[1759420358022,0.65,226.5,226.42,21.49]
[1759420358206,0.65,226.5,226.43,21.49]
[1759420359237,5.0646355,226.52,226.44,5.1060036]
[1759420360007,0.65,226.51,226.44,0.69]
[1759420360414,0.65,226.51,226.44,5.10617511]
[1759420360735,11.03481746,226.56,226.47,20.8]
[1759420360736,31.22,226.56,226.47,20.8]
[1759420361034,0.65,226.54,226.47,20.8]
[1759420361207,5.06442634,226.53,226.46,0.69]
[1759420361617,0.65,226.54,226.46,5.10578528]
[1759420361940,0.65,226.54,226.47,0.69]
[1759420362518,4.41419879,226.55,226.47,21.49]
[1759420362724,4.41419879,226.55,226.48,0.69]
[1759420363126,4.41419879,226.55,226.49,20.8]
[1759420363366,4.41419879,226.55,226.49,0.69]
[1759420364127,5.06419879,226.55,226.47,21.49]
[1759420364431,5.06419879,226.55,226.47,25.90558155]
[1759420364623,5.06419879,226.55,226.46,4.41578622]
[1759420364833,5.06419879,226.55,226.49,20.8]
[1759420365738,5.06419879,226.55,226.48,0.69]
[1759420367115,16.09929038,226.55,226.47,21.49]
[1759420367310,15.44929038,226.55,226.47,0.69]
[1759420367616,0.65,226.54,226.47,21.49]
[1759420368032,5.06436521,226.54,226.49,20.8]
[1759420368227,5.06436521,226.54,226.47,21.49]
[1759420368750,5.06436521,226.54,226.48,0.69]
[1759420368941,5.06398974,226.56,226.48,0.69]
[1759420370042,5.06398974,226.56,226.51,20.8]
[1759420370222,0.65,226.55,226.51,20.8]
[1759420370424,5.06398974,226.56,226.51,20.8]
[1759420370724,0.65,226.55,226.51,20.8]
[1759420371127,0.65,226.57,226.51,0.69]
[1759420371623,4.4134522,226.58,226.53,20.8]
[1759420371945,5.0634522,226.58,226.53,0.69]
[1759420372140,0.65,226.58,226.53,0.69]
[1759420372646,0.65,226.58,226.52,20.8]
[1759420372647,0.1,226.59,226.54,0.69]
[1759420373025,0.75,226.59,226.54,0.69]
[1759420373222,5.16325868,226.59,226.54,0.69]
[1759420373841,0.1,226.59,226.55,0.69]
[1759420374852,0.1,226.59,226.56,0.69]
[1759420375034,0.1,226.59,226.54,21.49]
[1759420375531,0.1,226.59,226.55,0.69]
[1759420376753,0.1,226.59,226.56,0.69]
[1759420377475,0.1,226.59,226.54,25.21422326]
[1759420377633,0.1,226.59,226.55,0.69]
[1759420378251,4.51328243,226.59,226.55,0.69]
[1759420378453,0.65,226.58,226.55,20.8]
[1759420378662,0.65,226.57,226.51,0.69]
[1759420378846,0.65,226.57,226.5,11.03185833]
[1759420379046,0.65,226.56,226.5,11.03185833]
[1759420379253,0.65,226.55,226.46,11.56647521]
[1759420379455,0.65,226.54,226.49,20.8]
[1759420379756,15.44776448,226.57,226.49,20.8]
[1759420379952,0.65,226.54,226.49,20.8]
[1759420380154,0.65,226.53,226.49,20.8]
[1759420380454,0.75,226.59,226.54,20.8]
[1759420380761,0.1,226.59,226.54,20.8]
[1759420380931,0.1,226.59,226.55,0.69]
[1759420381134,0.1,226.59,226.56,0.69]
[1759420381742,0.1,226.59,226.58,20.8]
[1759420383268,0.1,226.59,226.55,20.8]
[1759420383564,0.1,226.59,226.56,0.67]
[1759420384264,0.1,226.59,226.58,20.8]
[1759420386759,0.1,226.59,226.56,25.88383121]
[1759420387134,0.1,226.59,226.57,20.8]
[1759420387468,0.71,226.58,226.57,20.8]
[1759420387637,0.71,226.58,226.5,11.03139302]
[1759420387837,0.71,226.57,226.5,11.03139302]
[1759420388147,0.71,226.56,226.46,15.29226356]
[1759420388461,0.71,226.55,226.49,20.8]
[1759420388638,15.44776448,226.57,226.49,20.8]
[1759420388841,0.71,226.54,226.49,20.8]
[1759420389149,0.71,226.53,226.42,5.0864666]
[1759420389345,0.71,226.52,226.45,20.8]
[1759420389560,0.71,226.56,226.46,0.67]
[1759420389769,31.18,226.54,226.46,0.67]
[1759420390064,0.71,226.55,226.49,20.8]
[1759420390239,0.71,226.54,226.49,20.8]
[1759420390435,31.89,226.57,226.5,0.67]
[1759420390867,31.89,226.57,226.52,20.8]
[1759420391166,0.71,226.56,226.52,20.8]
[1759420391344,0.71,226.55,226.47,10.87647521]
[1759420391552,0.71,226.54,226.48,0.67]
[1759420391944,0.71,226.54,226.5,20.8]
[1759420392356,0.71,226.53,226.5,20.8]
[1759420392557,0.71,226.53,226.48,5.08529272]
[1759420392759,5.1240783,226.55,226.48,25.88529272]
[1759420393453,0.71,226.55,226.48,25.88529272]
[1759420393651,0.71,226.55,226.49,0.67]
[1759420393858,5.1240411,226.55,226.48,25.21529272]
[1759420394061,0.71,226.56,226.49,0.67]
[1759420394250,4.41403663,226.55,226.49,0.67]
[1759420394450,4.41403663,226.55,226.49,5.08516615]
[1759420394646,4.41403663,226.55,226.47,13.25527449]
[1759420394974,0.71,226.54,226.44,4.41618088]
[1759420395145,0.71,226.53,226.46,20.8]
[1759420395346,0.71,226.52,226.46,20.8]
[1759420395564,0.71,226.51,226.46,20.8]
[1759420395766,4.41403663,226.55,226.46,20.8]
[1759420395767,0.71,226.5,226.46,20.8]
[1759420395965,0.71,226.5,226.44,4.41618088]
[1759420396173,0.71,226.5,226.44,5.08618088]
[1759420396339,31.89,226.49,226.42,13.25820351]
[1759420396546,2.42247869,226.48,226.37,0.67]
[1759420396751,31.24,226.47,226.38,0.67]
[1759420396954,0.71,226.46,226.38,0.67]
[1759420397257,0.71,226.48,226.42,20.8]
[1759420397461,31.24,226.51,226.39,10.87647521]
[1759420397462,0.71,226.47,226.39,0.67]
[1759420397639,0.71,226.47,226.39,20.8]
[1759420397845,0.71,226.46,226.35,11.54647521]
[1759420398069,0.71,226.45,226.35,0.67]
[1759420398278,15.45663309,226.44,226.35,0.67]
[1759420398462,0.71,226.43,226.32,35.51985317]
[1759420398770,0.71,226.42,226.35,20.8]
[1759420398950,0.71,226.41,226.35,20.8]
[1759420399147,31.95,226.45,226.36,0.67]
[1759420399352,0.71,226.45,226.36,0.67]
[1759420399770,0.71,226.45,226.35,20.8]
[1759420399960,0.71,226.44,226.35,20.8]
[1759420400160,0.71,226.43,226.35,20.8]
[1759420400356,0.71,226.43,226.35,5.08774693]
[1759420400557,4.41465631,226.52,226.38,20.8]
[1759420400756,0.71,226.49,226.42,20.8]
[1759420401073,0.71,226.51,226.43,0.67]
[1759420401657,0.71,226.51,226.43,20.8]
[1759420401871,15.45120937,226.52,226.39,21.47]
[1759420401872,0.71,226.5,226.39,21.47]
[1759420402072,0.71,226.49,226.41,20.8]
[1759420402263,4.41559588,226.47,226.41,20.8]
[1759420402465,4.41559588,226.47,226.36,5.08755591]
[1759420402466,0.71,226.46,226.36,5.08755591]
[1759420402652,0.71,226.45,226.39,20.8]
[1759420402853,4.41559588,226.47,226.35,24.30773468]
[1759420402854,0.71,226.44,226.35,13.26289263]
[1759420403158,0.71,226.43,226.35,13.26289263]
[1759420403474,0.71,226.43,226.36,20.8]
[1759420404175,0.71,226.43,226.38,20.8]
[1759420404364,0.68,226.42,226.33,4.41832303]
[1759420404563,0.68,226.41,226.35,20.8]
[1759420404767,0.68,226.4,226.35,20.8]
[1759420405082,0.68,226.4,226.33,4.41830237]
[1759420405674,53.41702078,226.48,226.33,4.41830237]
[1759420405675,0.68,226.45,226.36,20.8]
[1759420405881,0.68,226.48,226.37,0.69]
[1759420406187,5.09549147,226.48,226.38,4.41735135]
[1759420406356,0.68,226.47,226.38,4.41735135]
[1759420406552,0.68,226.46,226.38,4.41735135]
[1759420407381,0.68,226.45,226.38,4.41735135]
[1759420409180,4.41558042,226.48,226.39,5.10696329]
[1759420409383,0.68,226.47,226.39,5.10696329]
[1759420410183,34.55528922,226.49,226.42,20.8]
[1759420410381,0.68,226.48,226.42,20.8]
[1759420410768,0.68,226.48,226.44,0.5]
[1759420411389,0.71,226.47,226.44,0.5]
[1759420411692,34.55530682,226.49,226.44,0.5]
[1759420411859,30.14,226.49,226.44,1.19]
[1759420412255,30.14,226.49,226.44,5.60611719]
[1759420412256,30.85,226.49,226.44,5.60611719]
[1759420412477,34.5552652,226.49,226.44,0.5]
[1759420412680,0.71,226.48,226.44,0.5]
[1759420413084,34.5552652,226.49,226.44,0.5]
[1759420413287,0.71,226.47,226.44,0.5]
[1759420415590,0.71,226.46,226.41,20.8]
[1759420415792,0.71,226.45,226.35,11.56647521]
[1759420416159,4.41541136,226.48,226.35,11.56647521]
[1759420416160,0.71,226.44,226.38,20.8]
[1759420416578,0.71,226.44,226.36,0.69]
[1759420416784,5.12633098,226.44,226.36,5.10774165]
[1759420416990,4.41633098,226.44,226.39,20.8]
[1759420417293,0.71,226.43,226.32,0.69]
[1759420417599,0.71,226.43,226.34,20.8]
[1759420417766,0.71,226.43,226.35,0.69]
[1759420417967,0.71,226.42,226.35,0.69]
[1759420418180,0.71,226.42,226.34,20.8]
[1759420418393,0.71,226.41,226.33,20.8]
[1759420418565,0.71,226.4,226.33,20.8]
[1759420418766,5.12704157,226.4,226.34,20.8]
[1759420419074,5.12704157,226.4,226.33,4.41823184]
[1759420419269,5.12704157,226.4,226.34,20.8]
[1759420419575,5.12704157,226.4,226.27,11.04862351]
[1759420419576,0.71,226.39,226.27,11.04862351]
[1759420419786,0.71,226.38,226.28,5.10930351]
[1759420419993,0.71,226.38,226.31,20.8]
[1759420420291,0.71,226.38,226.29,0.69]
[1759420420798,0.71,226.38,226.31,20.8]
[1759420420990,5.12735657,226.38,226.31,25.2187061]
[1759420421192,5.12735657,226.38,226.31,25.9087061]
[1759420421366,5.12735657,226.38,226.31,0.69]
[1759420421697,5.12735657,226.38,226.31,20.8]
[1759420421903,0.71,226.37,226.31,20.8]
[1759420422080,0.71,226.37,226.27,4.41932408]
[1759420422393,0.71,226.36,226.26,11.73204805]
[1759420422593,0.71,226.36,226.23,0.69]
[1759420422594,1.71247869,226.34,226.23,0.69]
[1759420422799,0.71,226.33,226.23,0.69]
[1759420422983,0.71,226.33,226.22,0.69]
[1759420422984,4.41852244,226.32,226.22,0.69]
[1759420423184,0.71,226.31,226.22,0.69]
[1759420423382,0.71,226.31,226.19,11.9354174]
[1759420423698,0.71,226.3,226.22,20.8]
[1759420423881,0.71,226.3,226.22,21.49]
[1759420424194,0.71,226.3,226.22,0.69]
[1759420424980,0.71,226.3,226.23,4.42028024]
[1759420425179,31.3,226.36,226.23,4.42028024]
[1759420425180,12.5889539,226.34,226.23,4.42028024]
[1759420425387,0.71,226.3,226.23,4.42028024]
[1759420425698,0.71,226.29,226.23,4.42028024]
[1759420426678,0.71,226.32,226.23,4.42028024]
[1759420426871,0.71,226.32,226.24,0.69]
[1759420427068,0.71,226.32,226.25,4.4198895]
[1759420427476,0.71,226.31,226.24,21.49]
[1759420427670,0.71,226.32,226.24,25.91006712]
[1759420428306,36.44813201,226.34,226.26,20.8]
[1759420428485,35.73813201,226.34,226.26,20.8]
[1759420428677,2.42247869,226.33,226.25,20.8]
[1759420428883,0.71,226.32,226.25,20.8]
[1759420429182,0.71,226.31,226.25,20.8]
[1759420429591,4.41852244,226.32,226.25,20.8]
[1759420429793,0.71,226.3,226.25,20.8]
[1759420429998,0.71,226.29,226.25,20.8]
[1759420430803,1.71247869,226.38,226.26,0.69]
[1759420431003,20.8,226.39,226.27,4.41949882]
[1759420431004,4.41813201,226.34,226.27,4.41949882]
[1759420431196,4.41813201,226.34,226.27,5.10949882]
[1759420431396,0.71,226.35,226.27,5.10949882]
[1759420432475,5.1279689,226.35,226.27,5.10949882]
[1759420432681,5.1279689,226.35,226.27,0.69]
[1759420433202,0.71,226.35,226.27,5.10942015]
[1759420433407,31.32,226.37,226.27,5.10942015]
[1759420433408,31.32,226.37,226.28,0.69]
[1759420433808,0.71,226.4,226.3,20.8]
[1759420433982,0.71,226.4,226.31,0.69]
[1759420434793,31.32,226.41,226.31,0.69]
[1759420435017,32.03,226.41,226.32,4.41852244]
[1759420435183,36.44679901,226.41,226.32,4.41852244]
[1759420435508,0.71,226.4,226.32,4.41852244]
[1759420435681,0.71,226.39,226.32,4.41852244]
[1759420436081,0.71,226.38,226.33,20.8]
[1759420436311,0.71,226.37,226.33,20.8]
[1759420436508,32.03,226.41,226.34,0.69]
[1759420436682,31.32,226.41,226.34,0.69]
[1759420437198,32.03,226.41,226.34,4.41799256]
[1759420437915,31.32,226.41,226.35,0.69]
[1759420438504,0.71,226.4,226.35,20.8]
[1759420439898,31.32,226.41,226.35,20.8]
[1759420440098,0.71,226.4,226.35,20.8]
[1759420440840,35.7365754,226.42,226.35,0.69]
[1759420440989,36.4465754,226.42,226.35,21.49]
[1759420441318,36.4265754,226.42,226.35,20.8]
[1759420442037,32.01,226.42,226.36,20.8]
[1759420442203,32.01,226.42,226.35,25.21785975]
[1759420442589,31.3,226.42,226.36,0.68]
[1759420442785,0.68,226.47,226.36,0.68]
[1759420443001,31.96,226.47,226.36,0.68]
[1759420443701,31.96,226.47,226.3,0.68]
[1759420443702,1.71247869,226.44,226.3,0.68]
[1759420443908,0.68,226.43,226.31,10.87647521]
[1759420444110,31.3,226.45,226.35,20.8]
[1759420444297,0.68,226.44,226.35,20.8]
[1759420444497,0.68,226.44,226.36,0.68]
[1759420446297,0.68,226.44,226.37,4.41754649]
[1759420446497,5.09618654,226.44,226.37,4.41754649]
[1759420447104,0.68,226.44,226.39,20.8]
[1759420447315,31.3,226.45,226.4,21.48]
[1759420447627,0.68,226.47,226.41,0.68]
[1759420448197,5.09520596,226.49,226.41,0.68]
[1759420448511,5.09520596,226.49,226.42,4.41657097]
[1759420449019,0.68,226.52,226.45,20.8]
[1759420449313,0.68,226.54,226.45,21.48]
[1759420449719,0.68,226.54,226.46,21.48]
[1759420450091,0.68,226.57,226.5,20.8]
[1759420450297,0.68,226.57,226.51,4.41481612]
[1759420450597,0.68,226.57,226.5,20.8]
[1759420450829,5.09366631,226.57,226.49,5.09518013]
[1759420453022,0.68,226.57,226.49,0.68]
[1759420453222,5.09365229,226.57,226.49,0.68]
[1759420453611,5.09365229,226.57,226.49,20.8]
[1759420453820,0.68,226.56,226.49,20.8]
[1759420454002,0.68,226.55,226.49,20.8]
[1759420454520,5.09405426,226.55,226.48,5.09530506]
[1759420454821,4.4137744,226.57,226.49,0.68]
[1759420456296,4.4137744,226.57,226.5,4.41501103]
[1759420456826,0.68,226.58,226.51,0.68]
[1759420457004,5.09348703,226.58,226.51,20.8]
[1759420457209,0.68,226.57,226.51,20.8]
[1759420457722,0.68,226.56,226.5,20.8]
[1759420457902,0.68,226.56,226.51,20.8]
[1759420458308,4.41403663,226.55,226.51,20.8]
[1759420458531,5.09403663,226.55,226.51,20.8]
[1759420458906,0.68,226.55,226.51,20.8]
[1759420460024,4.41385813,226.56,226.5,20.8]
[1759420460209,4.41423148,226.54,226.5,20.8]
[1759420460951,4.41423148,226.54,226.51,20.8]
[1759420461508,5.09406981,226.55,226.51,20.8]
[1759420461705,0.68,226.54,226.51,20.8]
[1759420462129,4.41406981,226.55,226.51,20.8]
[1759420462321,0.68,226.55,226.51,20.8]
[1759420462829,0.68,226.54,226.49,20.8]
[1759420463016,0.68,226.53,226.49,20.8]
[1759420463218,0.68,226.52,226.44,4.41617054]
[1759420463426,0.68,226.51,226.41,0.67]
[1759420463725,0.7,226.53,226.43,20.8]
[1759420463899,15.4470827,226.58,226.44,0.67]
[1759420464101,0.7,226.57,226.45,20.8]
[1759420464311,4.41403663,226.55,226.47,4.41559588]
[1759420464499,5.11403663,226.55,226.47,4.41559588]
[1759420465826,0.7,226.55,226.47,4.41559588]
[1759420466331,0.1,226.59,226.48,0.67]
[1759420466332,0.8,226.59,226.48,0.67]
[1759420466718,0.8,226.59,226.5,20.8]
[1759420466922,0.8,226.59,226.5,21.47]
[1759420467117,5.21333005,226.59,226.5,20.8]
[1759420467324,5.21333005,226.59,226.51,0.67]